fUSD/lending_fUSD_20241029
["ID","MTS","AMOUNT","RATE_DAILY","PERIOD"]
[340986435,1730214632754,-1017.884,0.000411,60]
[340986438,1730214632764,-904.0,0.00041106,2]
[340986441,1730214632774,-483.99,0.00041463,2]
[340986444,1730214632783,-150.0,0.00041502,2]
[340986446,1730214632795,-421.1481,0.00041507,20]
[340986447,1730214632805,-42185.03597564,0.0004153,7]
[340986449,1730214632814,-150.0,0.00041616,2]
[340986451,1730214632823,-4221.78,0.00041805,2]
[340986453,1730214632833,-1365.3589,0.00041899,2]
[340986455,1730214632842,-37716.1946,0.00041899,2]
[340986457,1730214632851,-669.11,0.000419,2]
[340986459,1730214632860,-6344.24820626,0.000419,120]
[340986461,1730214632871,-1406.0,0.000419,5]
[340986463,1730214632880,-168.27409619,0.000419,5]
[340986465,1730214632889,-150.0,0.00041984,2]
[340986467,1730214632899,-261.08931363,0.00041988,2]
[340986468,1730214632908,-209.69316707,0.00041997,7]
[340986470,1730214632929,-235.26302741,0.00041997,7]
[340986472,1730214632943,-500.0,0.00041997,2]
[340986474,1730214632952,-728.72,0.00041997,7]
[340986476,1730214632962,-500.0,0.00041997,7]
[340986478,1730214632972,-582.59,0.00041997,7]
[340986480,1730214632981,-38245.08968986,0.00041998,3]
[340986482,1730214632991,-103393.29925037,0.00041998,3]
[340986484,1730214633003,-23507.9484284,0.00041998,3]
[340986487,1730214633014,-22172.27415739,0.00041998,3]
[340986499,1730214633131,-365.1276716,0.00041998,3]
[340986501,1730214633143,-979.42207152,0.00041998,3]
[340986504,1730214633159,-359.40237,0.00041998,3]
[340986594,1730214638523,-153.96,0.00015342,2]
[340986595,1730214638534,-172.75607701,0.00041935,3]
[340986596,1730214638544,-500.0,0.00041997,7]
[340986597,1730214638554,-180.63918316,0.00041998,3]
[340986735,1730214640351,-1472.1070919,0.00041998,3]
[340986752,1730214640510,-952.09603091,0.00041998,3]
[340987091,1730214644115,-719.25,0.00041998,3]
[340987116,1730214644320,-496.64499881,0.00041998,3]
[340987122,1730214644399,-500.0,0.00041997,7]
[340987123,1730214644409,-1654.67542206,0.00041998,3]
[340987156,1730214646470,-332.08741669,0.00041158,5]
[340987157,1730214646526,-1533.1703269,0.00041158,5]
[340987164,1730214646632,-500.0,0.00041973,2]
[340987166,1730214646643,-365308.89412971,0.00041998,3]
[340987168,1730214646653,-500.0,0.00041998,7]
[340987170,1730214646663,-500.0,0.00041998,7]
[340987171,1730214646674,-500.0,0.00041998,7]
[340987172,1730214646683,-1851.03,0.00041998,120]
[340987173,1730214646693,-317.80468874,0.00041998,7]
[340987174,1730214646702,-500.0,0.00041998,7]
[340987175,1730214646716,-500.0,0.00041998,7]
[340987176,1730214646726,-500.0,0.00041998,7]
[340987177,1730214646735,-500.0,0.00041998,7]
[340987178,1730214646745,-500.0,0.00041998,7]
[340987179,1730214646754,-446.24960608,0.00041998,7]
[340987180,1730214646764,-500.0,0.00041998,7]
[340987181,1730214646773,-317.72552528,0.00041998,7]
[340987182,1730214646783,-500.0,0.00041998,7]
[340987183,1730214646795,-500.0,0.00041998,7]
[340987184,1730214646805,-500.0,0.00041998,7]
[340987185,1730214646814,-500.0,0.00041998,7]
[340987186,1730214646824,-500.0,0.00041998,7]
[340987187,1730214646833,-571.21131108,0.00041998,7]
[340987188,1730214646843,-500.0,0.00041998,7]
[340987189,1730214646852,-500.0,0.00041998,7]
[340987190,1730214646862,-2222.44,0.00041998,7]
[340987191,1730214646871,-500.0,0.00041998,7]
[340987192,1730214646882,-500.0,0.00041998,7]
[340987193,1730214646891,-500.0,0.00041998,7]
[340987194,1730214646900,-500.0,0.00041998,7]
[340987195,1730214646909,-637.71,0.00041998,7]
[340987196,1730214646919,-500.0,0.00041998,7]
[340987197,1730214646929,-500.0,0.00041998,7]
[340987198,1730214646938,-8651.39,0.00041998,7]
[340987199,1730214646947,-500.0,0.00041998,7]
[340987200,1730214646957,-500.0,0.00041998,7]
[340987201,1730214646966,-500.0,0.00041998,7]
[340987202,1730214646975,-360.72297111,0.00041998,7]
[340987203,1730214646984,-500.0,0.00041998,7]
[340987204,1730214646994,-569.8419604,0.00041998,7]
[340987205,1730214647003,-494.25233278,0.00041998,7]
[340987206,1730214647012,-593.32,0.00041998,7]
[340987207,1730214647021,-5156.34,0.00041998,7]
[340987208,1730214647030,-500.0,0.00041998,7]
[340987209,1730214647040,-2214.74,0.00041998,7]
[340987210,1730214647049,-500.0,0.00041998,7]
[340987211,1730214647058,-500.0,0.00041998,7]
[340987212,1730214647067,-500.0,0.00041998,7]
[340987213,1730214647076,-518.6,0.00041998,7]
[340987214,1730214647085,-500.0,0.00041998,7]
[340987215,1730214647095,-618.92,0.00041998,7]
[340987216,1730214647104,-500.0,0.00041998,7]
[340987217,1730214647113,-500.0,0.00041998,7]
[340987218,1730214647122,-500.0,0.00041999,7]
[340987219,1730214647134,-500.0,0.00041999,7]
[340987220,1730214647143,-500.0,0.00041999,7]
[340987221,1730214647152,-500.0,0.00041999,7]
[340987222,1730214647162,-500.0,0.00041999,7]
[340987223,1730214647171,-500.0,0.00041999,7]
[340987224,1730214647180,-500.0,0.00041999,7]
[340987225,1730214647190,-500.0,0.00041999,7]
[340987226,1730214647200,-553.08569012,0.00041999,7]
[340987227,1730214647209,-329.15749212,0.00041999,7]
[340987228,1730214647219,-939.21,0.00041999,7]
[340987229,1730214647229,-500.0,0.00041999,7]
[340987230,1730214647239,-500.0,0.00041999,7]
[340987231,1730214647249,-178.1,0.00041999,7]
[340987232,1730214647259,-500.0,0.00041999,7]
[340987233,1730214647268,-325.84181099,0.00041999,7]
[340987234,1730214647279,-519.87808368,0.00041999,7]
[340987235,1730214647288,-506.78582921,0.00041999,7]
[340987236,1730214647298,-632.24,0.00041999,7]
[340987237,1730214647308,-511.05211898,0.00041999,7]
[340987238,1730214647317,-500.0,0.00041999,7]
[340987239,1730214647327,-4430.81383148,0.00041999,2]
[340987240,1730214647336,-500.0,0.00041999,7]
[340987241,1730214647346,-500.0,0.00041999,7]
[340987242,1730214647356,-500.0,0.00041999,7]
[340987243,1730214647365,-500.0,0.00041999,7]
[340987244,1730214647376,-500.0,0.00041999,7]
[340987245,1730214647386,-585.42,0.00041999,7]
[340987246,1730214647396,-500.0,0.00041999,7]
[340987247,1730214647405,-500.0,0.00041999,7]
[340987248,1730214647414,-500.0,0.00041999,7]
[340987249,1730214647424,-500.0,0.00041999,7]
[340987250,1730214647434,-500.0,0.00041999,2]
[340987251,1730214647443,-500.0,0.00041999,7]
[340987252,1730214647452,-500.0,0.00041999,7]
[340987253,1730214647461,-1863.95,0.00041999,7]
[340987254,1730214647471,-500.0,0.00041999,7]
[340987255,1730214647480,-532.64555796,0.00041999,7]
[340987256,1730214647489,-500.0,0.00041999,7]
[340987257,1730214647498,-538.52657155,0.00041999,7]
[340987258,1730214647507,-500.0,0.00041999,7]
[340987259,1730214647517,-1504.51,0.00041999,7]
[340987260,1730214647526,-500.0,0.00041999,7]
[340987261,1730214647535,-500.0,0.00041999,7]
[340987262,1730214647545,-500.0,0.00041999,7]
[340987263,1730214647556,-500.0,0.00041999,7]
[340987264,1730214647566,-499.66712058,0.00041999,7]
[340987265,1730214647575,-500.0,0.00041999,7]
[340987266,1730214647585,-500.0,0.00041999,7]
[340987267,1730214647594,-567.59015228,0.00041999,7]
[340987268,1730214647603,-546.29355827,0.00041999,7]
[340987269,1730214647612,-379.49685617,0.00041999,7]
[340987270,1730214647621,-500.0,0.00041999,7]
[340987271,1730214647632,-500.0,0.00041999,7]
[340987272,1730214647642,-500.0,0.00041999,7]
[340987273,1730214647651,-500.0,0.00041999,7]
[340987274,1730214647660,-501.40698175,0.00041999,2]
[340987275,1730214647670,-500.0,0.00041999,7]
[340987276,1730214647679,-500.0,0.00041999,7]
[340987277,1730214647689,-500.0,0.00041999,7]
[340987278,1730214647698,-500.0,0.00041999,7]
[340987279,1730214647707,-257.20887599,0.00041999,7]
[340987280,1730214647720,-500.0,0.00041999,7]
[340987281,1730214647729,-214.50727377,0.00041999,7]
[340987282,1730214647738,-500.0,0.00041999,7]
[340987283,1730214647747,-500.0,0.00041999,7]
[340987284,1730214647756,-500.0,0.00041999,7]
[340987285,1730214647766,-500.0,0.00041999,7]
[340987286,1730214647775,-500.0,0.00041999,7]
[340987287,1730214647786,-500.0,0.00041999,7]
[340987288,1730214647796,-517.44388511,0.00041999,7]
[340987289,1730214647807,-502.26265883,0.00041999,7]
[340987290,1730214647816,-150.0,0.00041999,7]
[340987291,1730214647827,-500.0,0.00041999,7]
[340987292,1730214647837,-500.0,0.00041999,7]
[340987293,1730214647847,-500.0,0.00041999,7]
[340987294,1730214647857,-500.0,0.00041999,7]
[340987295,1730214647866,-500.0,0.00041999,7]
[340987296,1730214647876,-500.0,0.00041999,7]
[340987297,1730214647886,-500.0,0.00041999,7]
[340987298,1730214647896,-500.0,0.00041999,7]
[340987299,1730214647907,-500.0,0.00041999,7]
[340987300,1730214647916,-500.0,0.00041999,7]
[340987301,1730214647925,-500.0,0.00041999,7]
[340987302,1730214647934,-507.46868131,0.00041999,7]
[340987303,1730214647943,-500.0,0.00041999,7]
[340987304,1730214647953,-517.26638466,0.00041999,7]
[340987305,1730214647962,-500.0,0.00041999,7]
[340987306,1730214647972,-500.0,0.00041999,7]
[340987307,1730214647984,-500.0,0.00041999,7]
[340987308,1730214647996,-500.0,0.00041999,7]
[340987309,1730214648007,-500.0,0.00041999,7]
[340987310,1730214648016,-505.91207658,0.00041999,7]
[340987311,1730214648025,-509.88432884,0.00041999,7]
[340987312,1730214648035,-500.0,0.00041999,7]
[340987313,1730214648045,-208.51396996,0.00041999,7]
[340987314,1730214648054,-2137.33,0.00041999,7]
[340987315,1730214648063,-436.5634186,0.00041999,7]
[340987316,1730214648152,-500.0,0.00041999,7]
[340987317,1730214648163,-200.0,0.00041999,7]
[340987318,1730214648173,-573.61,0.00041999,7]
[340987319,1730214648183,-500.0,0.00041999,7]
[340987320,1730214648192,-500.0,0.00041999,7]
[340987321,1730214648201,-500.0,0.00041999,7]
[340987322,1730214648210,-219.99569956,0.00041999,7]
[340987323,1730214648219,-377.59406432,0.00041999,7]
[340987324,1730214648229,-500.0,0.00041999,7]
[340987325,1730214648238,-500.0,0.00041999,7]
[340987326,1730214648247,-500.0,0.00041999,7]
[340987327,1730214648256,-500.0,0.00041999,7]
[340987328,1730214648266,-500.0,0.00041999,7]
[340987329,1730214648275,-503.46788181,0.00041999,7]
[340987330,1730214648284,-500.0,0.00041999,7]
[340987331,1730214648293,-354.9846123,0.00041999,7]
[340987332,1730214648303,-150.0,0.00041999,7]
[340987333,1730214648313,-500.0,0.00041999,7]
[340987334,1730214648322,-500.0,0.00041999,7]
[340987335,1730214648332,-563.09614586,0.00041999,7]
[340987336,1730214648341,-515.93,0.00041999,7]
[340987337,1730214648350,-500.0,0.00041999,7]
[340987338,1730214648360,-500.0,0.00041999,7]
[340987339,1730214648369,-500.0,0.00041999,7]
[340987340,1730214648379,-500.0,0.00041999,7]
[340987341,1730214648388,-500.0,0.00041999,7]
[340987342,1730214648397,-505.05994128,0.00041999,7]
[340987343,1730214648407,-500.0,0.00041999,7]
[340987344,1730214648416,-525.40751265,0.00041999,7]
[340987345,1730214648426,-500.0,0.00041999,7]
[340987346,1730214648435,-320.84213016,0.00041999,7]
[340987347,1730214648444,-500.0,0.00041999,7]
[340987348,1730214648453,-500.0,0.00041999,7]
[340987349,1730214648463,-500.0,0.00041999,7]
[340987350,1730214648472,-500.0,0.00041999,7]
[340987351,1730214648481,-500.0,0.00041999,7]
[340987352,1730214648491,-500.0,0.00041999,7]
[340987353,1730214648500,-500.0,0.00041999,7]
[340987354,1730214648510,-500.0,0.00041999,7]
[340987355,1730214648519,-164.22215523,0.00041999,7]
[340987356,1730214648528,-500.0,0.00041999,7]
[340987357,1730214648538,-500.0,0.00041999,7]
[340987358,1730214648548,-571.65433071,0.00041999,7]
[340987359,1730214648558,-532.01997622,0.00041999,7]
[340987360,1730214648568,-500.0,0.00041999,7]
[340987361,1730214648578,-500.0,0.00041999,7]
[340987362,1730214648587,-546.4749586,0.00041999,7]
[340987363,1730214648597,-555.94,0.00041999,7]
[340987364,1730214648606,-500.0,0.00041999,7]
[340987365,1730214648616,-500.0,0.00041999,7]
[340987366,1730214648625,-500.0,0.00041999,7]
[340987367,1730214648636,-632.74534445,0.00041999,7]
[340987368,1730214648646,-500.0,0.00041999,7]
[340987369,1730214648656,-500.0,0.00041999,7]
[340987370,1730214648665,-500.0,0.00041999,7]
[340987371,1730214648674,-500.0,0.00041999,7]
[340987372,1730214648684,-500.0,0.00041999,7]
[340987373,1730214648694,-500.0,0.00041999,7]
[340987374,1730214648704,-500.0,0.00041999,7]
[340987375,1730214648718,-500.0,0.00041999,7]
[340987376,1730214648727,-500.0,0.00041999,7]
[340987377,1730214648737,-500.0,0.00041999,7]
[340987378,1730214648747,-500.0,0.00041999,7]
[340987379,1730214648757,-500.0,0.00041999,7]
[340987380,1730214648767,-500.0,0.00041999,7]
[340987381,1730214648777,-500.0,0.00041999,7]
[340987382,1730214648786,-500.0,0.00041999,7]
[340987383,1730214648797,-500.0,0.00041999,7]
[340987384,1730214648807,-500.0,0.00041999,7]
[340987385,1730214648818,-500.0,0.00041999,7]
[340987386,1730214648834,-216.28966535,0.00041999,7]
[340987387,1730214648848,-500.0,0.00041999,7]
[340987388,1730214648863,-500.0,0.00041999,7]
[340987389,1730214648879,-637.14,0.00041999,7]
[340987390,1730214648895,-500.0,0.00041999,7]
[340987391,1730214648910,-500.0,0.00041999,7]
[340987392,1730214648926,-500.0,0.00041999,7]
[340987393,1730214648939,-500.0,0.00041999,7]
[340987394,1730214648952,-500.0,0.00041999,7]
[340987395,1730214648968,-500.0,0.00041999,7]
[340987396,1730214648982,-500.0,0.00041999,7]
[340987397,1730214648993,-500.0,0.00041999,7]
[340987398,1730214649006,-500.0,0.00041999,7]
[340987399,1730214649021,-500.0,0.00041999,7]
[340987400,1730214649036,-500.0,0.00041999,7]
[340987401,1730214649054,-500.0,0.00041999,7]
[340987402,1730214649068,-500.0,0.00041999,7]
[340987403,1730214649079,-1000.0,0.00041999,7]
[340987404,1730214649091,-500.0,0.00041999,7]
[340987405,1730214649106,-500.0,0.00041999,7]
[340987406,1730214649120,-500.0,0.00041999,7]
[340987407,1730214649138,-952.45,0.00041999,7]
[340987408,1730214649152,-500.0,0.00041999,7]
[340987409,1730214649165,-500.0,0.00041999,7]
[340987410,1730214649177,-500.0,0.00041999,7]
[340987411,1730214649190,-500.0,0.00041999,7]
[340987412,1730214649203,-595.48531137,0.00041999,7]
[340987413,1730214649216,-500.0,0.00041999,7]
[340987414,1730214649229,-500.0,0.00041999,7]
[340987415,1730214649243,-500.0,0.00041999,7]
[340987416,1730214649256,-500.0,0.00041999,7]
[340987417,1730214649269,-295.44617848,0.00041999,7]
[340987418,1730214649281,-379.22516854,0.00041999,7]
[340987419,1730214649295,-500.0,0.00041999,7]
[340987420,1730214649308,-500.0,0.00041999,7]
[340987421,1730214649320,-500.0,0.00041999,7]
[340987422,1730214649333,-500.0,0.00041999,7]
[340987423,1730214649346,-500.0,0.00041999,7]
[340987424,1730214649359,-500.0,0.00041999,7]
[340987425,1730214649372,-500.0,0.00041999,7]
[340987426,1730214649384,-500.0,0.00041999,7]
[340987427,1730214649396,-500.0,0.00041999,7]
[340987428,1730214649409,-500.0,0.00041999,7]
[340987429,1730214649422,-500.0,0.00041999,7]
[340987430,1730214649435,-500.0,0.00041999,7]
[340987431,1730214649448,-500.0,0.00041999,7]
[340987432,1730214649464,-500.0,0.00041999,7]
[340987433,1730214649477,-313.17377684,0.00041999,7]
[340987434,1730214649489,-519.95666147,0.00041999,7]
[340987435,1730214649502,-513.54843225,0.00041999,7]
[340987436,1730214649515,-500.0,0.00041999,7]
[340987437,1730214649528,-500.0,0.00041999,7]
[340987438,1730214649541,-500.0,0.00041999,7]
[340987439,1730214649555,-500.0,0.00041999,7]
[340987440,1730214649567,-2103.02,0.00041999,7]
[340987441,1730214649581,-500.0,0.00041999,7]
[340987442,1730214649594,-500.0,0.00041999,7]
[340987443,1730214649606,-500.0,0.00041999,7]
[340987444,1730214649620,-500.0,0.00041999,7]
[340987445,1730214649637,-500.0,0.00041999,7]
[340987446,1730214649651,-500.0,0.00041999,7]
[340987447,1730214649666,-573.35,0.00041999,7]
[340987448,1730214649681,-700.0,0.00041999,7]
[340987449,1730214649697,-500.0,0.00041999,7]
[340987450,1730214649711,-500.0,0.00041999,30]
[340987451,1730214649722,-500.0,0.00041999,7]
[340987452,1730214649732,-500.0,0.00041999,7]
[340987453,1730214649743,-500.0,0.00041999,7]
[340987454,1730214649892,-500.0,0.00041999,7]
[340987455,1730214649908,-500.0,0.00041999,7]
[340987456,1730214649918,-500.0,0.00041999,7]
[340987457,1730214649927,-500.0,0.00041999,7]
[340987458,1730214649936,-427.41422238,0.00041999,7]
[340987459,1730214649946,-524.7867527,0.00041999,7]
[340987460,1730214649955,-500.0,0.00041999,7]
[340987461,1730214649965,-500.0,0.00041999,7]
[340987462,1730214649974,-500.0,0.00041999,7]
[340987463,1730214649984,-547.53486777,0.00041999,7]
[340987464,1730214649993,-500.0,0.00041999,7]
[340987465,1730214650002,-329.12644103,0.00041999,2]
[340987466,1730214650011,-500.0,0.00041999,7]
[340987467,1730214650021,-500.0,0.00041999,7]
[340987468,1730214650030,-322.80413101,0.00041999,7]
[340987469,1730214650039,-828.5,0.00041999,7]
[340987470,1730214650049,-724.43,0.00041999,7]
[340987471,1730214650058,-500.0,0.00041999,7]
[340987472,1730214650067,-500.0,0.00041999,7]
[340987473,1730214650076,-500.0,0.00041999,7]
[340987474,1730214650086,-500.0,0.00041999,7]
[340987475,1730214650095,-500.0,0.00041999,7]
[340987476,1730214650104,-500.0,0.00041999,7]
[340987477,1730214650116,-500.0,0.00041999,7]
[340987478,1730214650127,-500.0,0.00041999,7]
[340987479,1730214650142,-582.65779103,0.00041999,7]
[340987480,1730214650155,-500.0,0.00041999,7]
[340987481,1730214650164,-500.0,0.00041999,7]
[340987482,1730214650173,-500.0,0.00041999,7]
[340987483,1730214650182,-500.0,0.00041999,7]
[340987484,1730214650192,-500.0,0.00041999,7]
[340987485,1730214650201,-500.0,0.00041999,7]
[340987486,1730214650210,-500.0,0.00041999,7]
[340987487,1730214650219,-500.0,0.00041999,7]
[340987488,1730214650229,-500.0,0.00041999,7]
[340987489,1730214650238,-500.0,0.00041999,7]
[340987490,1730214650247,-500.0,0.00041999,7]
[340987491,1730214650257,-500.0,0.00041999,7]
[340987492,1730214650266,-500.0,0.00041999,7]
[340987493,1730214650275,-500.0,0.00041999,7]
[340987494,1730214650284,-500.0,0.00041999,7]
[340987495,1730214650294,-500.0,0.00041999,7]
[340987496,1730214650303,-500.0,0.00041999,7]
[340987497,1730214650313,-500.0,0.00041999,7]
[340987498,1730214650323,-500.0,0.00041999,7]
[340987499,1730214650332,-1000.0,0.00041999,7]
[340987500,1730214650341,-500.0,0.00041999,7]
[340987501,1730214650351,-500.0,0.00041999,7]
[340987502,1730214650360,-500.0,0.00041999,7]
[340987503,1730214650369,-500.0,0.00041999,7]
[340987504,1730214650379,-500.0,0.00041999,7]
[340987505,1730214650388,-500.0,0.00041999,7]
[340987506,1730214650398,-510.84576366,0.00041999,7]
[340987507,1730214650407,-500.0,0.00041999,7]
[340987508,1730214650416,-500.0,0.00041999,7]
[340987509,1730214650427,-500.0,0.00041999,7]
[340987510,1730214650438,-625.87576747,0.00041999,7]
[340987511,1730214650448,-500.0,0.00041999,7]
[340987512,1730214650458,-500.0,0.00041999,7]
[340987513,1730214650467,-500.0,0.00041999,7]
[340987514,1730214650476,-500.0,0.00041999,7]
[340987515,1730214650485,-500.0,0.00041999,7]
[340987516,1730214650495,-500.0,0.00041999,7]
[340987517,1730214650504,-500.0,0.00041999,7]
[340987518,1730214650513,-538.77223047,0.00041999,7]
[340987519,1730214650522,-500.0,0.00041999,7]
[340987520,1730214650531,-500.0,0.00041999,7]
[340987521,1730214650540,-1000.0,0.00041999,10]
[340987522,1730214650550,-500.0,0.00041999,7]
[340987523,1730214650560,-500.0,0.00041999,7]
[340987524,1730214650569,-500.0,0.00041999,7]
[340987525,1730214650578,-500.0,0.00041999,7]
[340987526,1730214650587,-2000.0,0.00041999,7]
[340987527,1730214650597,-500.0,0.00041999,7]
[340987528,1730214650607,-500.0,0.00041999,7]
[340987529,1730214650616,-324.07516438,0.00041999,7]
[340987530,1730214650626,-500.0,0.00041999,7]
[340987531,1730214650641,-587.60441514,0.00041999,7]
[340987532,1730214650650,-504.37271062,0.00041999,7]
[340987533,1730214650660,-500.0,0.00041999,7]
[340987534,1730214650669,-500.0,0.00041999,7]
[340987535,1730214650679,-500.0,0.00041999,7]
[340987536,1730214650688,-500.0,0.00041999,7]
[340987537,1730214650697,-500.0,0.00041999,7]
[340987538,1730214650706,-500.0,0.00041999,7]
[340987539,1730214650720,-500.0,0.00041999,7]
[340987540,1730214650730,-415.88138142,0.00041999,31]
[340987541,1730214650739,-500.0,0.00041999,7]
[340987542,1730214650749,-500.0,0.00041999,7]
[340987543,1730214650758,-500.0,0.00041999,7]
[340987544,1730214650768,-500.0,0.00041999,7]
[340987545,1730214650778,-500.0,0.00041999,7]
[340987546,1730214650787,-1556.76,0.00041999,7]
[340987547,1730214650796,-509.26951906,0.00041999,7]
[340987548,1730214650806,-1270.541,0.00042,2]
[340987549,1730214650816,-1758.8238,0.00042,2]
[340987550,1730214650826,-500.0,0.00042,2]
[340987551,1730214650835,-1000.0,0.00042,2]
[340987552,1730214650846,-100000.0,0.00042,2]
[340987553,1730214650856,-245000.0,0.00042,2]
[340987554,1730214650865,-1000.0,0.00042,7]
[340987555,1730214650874,-250.0,0.00042,7]
[340987556,1730214650885,-330.2,0.00042,7]
[340987557,1730214650895,-500.0,0.00042099,7]
[340987558,1730214650904,-639.20872337,0.00042099,7]
[340987559,1730214650914,-500.0,0.00042099,7]
[340987560,1730214650923,-500.0,0.00042099,7]
[340987561,1730214650932,-500.0,0.00042099,7]
[340987562,1730214650942,-500.0,0.00042099,7]
[340987563,1730214650952,-500.0,0.00042099,7]
[340987564,1730214650961,-500.0,0.00042099,7]
[340987565,1730214650970,-500.0,0.00042099,7]
[340987566,1730214650980,-500.0,0.00042099,7]
[340987567,1730214650988,-500.0,0.00042099,7]
[340987568,1730214650998,-500.0,0.00042099,7]
[340987569,1730214651007,-500.0,0.00042099,7]
[340987570,1730214651016,-500.0,0.00042099,7]
[340987571,1730214651025,-500.0,0.00042099,7]
[340987572,1730214651035,-500.0,0.00042099,7]
[340987573,1730214651043,-162.68161941,0.00042099,7]
[340987574,1730214651052,-381.0200815,0.00042099,7]
[340987575,1730214651062,-255.38725908,0.00042099,7]
[340987576,1730214651071,-500.0,0.00042099,7]
[340987577,1730214651080,-500.0,0.00042099,7]
[340987578,1730214651089,-500.0,0.00042099,7]
[340987579,1730214651098,-500.0,0.00042099,7]
[340987580,1730214651107,-500.0,0.00042099,7]
[340987581,1730214651116,-500.0,0.00042099,7]
[340987582,1730214651125,-643.75,0.00042099,7]
[340987583,1730214651136,-426.88212105,0.00042099,7]
[340987584,1730214651145,-500.0,0.00042099,7]
[340987585,1730214651155,-500.0,0.00042099,7]
[340987586,1730214651164,-500.0,0.00042099,7]
[340987587,1730214651173,-500.0,0.00042099,7]
[340987588,1730214651183,-500.0,0.00042099,7]
[340987589,1730214651192,-500.0,0.00042099,7]
[340987590,1730214651201,-500.0,0.00042099,7]
[340987591,1730214651210,-3637.55,0.00042099,7]
[340987592,1730214651220,-500.0,0.00042099,7]
[340987593,1730214651229,-517.66726431,0.00042099,7]
[340987594,1730214651239,-500.0,0.00042099,7]
[340987595,1730214651248,-500.0,0.00042099,7]
[340987596,1730214651257,-4586.75,0.00042099,7]
[340987597,1730214651266,-533.21876928,0.00042099,7]
[340987598,1730214651276,-500.0,0.00042099,7]
[340987599,1730214651285,-500.0,0.00042099,7]
[340987600,1730214651295,-527.41469086,0.00042099,7]
[340987601,1730214651304,-500.0,0.00042099,7]
[340987602,1730214651314,-500.0,0.00042099,7]
[340987603,1730214651323,-500.0,0.00042099,7]
[340987604,1730214651332,-500.0,0.00042099,7]
[340987605,1730214651342,-607.97,0.00042099,7]
[340987606,1730214651351,-500.0,0.00042099,7]
[340987607,1730214651361,-569.27,0.00042099,7]
[340987608,1730214651371,-500.0,0.00042099,7]
[340987609,1730214651381,-563.59,0.00042099,7]
[340987610,1730214651391,-500.0,0.00042099,7]
[340987611,1730214651400,-742.58,0.00042099,7]
[340987612,1730214651409,-500.0,0.00042099,7]
[340987613,1730214651419,-500.0,0.00042099,7]
[340987614,1730214651428,-523.94009081,0.00042099,7]
[340987615,1730214651438,-500.0,0.00042099,7]
[340987616,1730214651447,-693.54,0.00042099,7]
[340987617,1730214651457,-500.0,0.00042099,7]
[340987618,1730214651467,-500.0,0.00042099,7]
[340987619,1730214651476,-500.0,0.00042099,7]
[340987620,1730214651486,-500.0,0.00042099,7]
[340987621,1730214651496,-500.0,0.00042099,7]
[340987622,1730214651507,-500.0,0.00042099,7]
[340987623,1730214651516,-615.06667052,0.00042099,7]
[340987624,1730214651527,-500.0,0.00042099,7]
[340987625,1730214651537,-792.56,0.00042099,7]